[Event "AUT-ch 2018"]
[Site "Vienna"]
[Date "2018.07.28"]
[Round "8"]
[White "Polterauer, Chiara"]
[Black "Wagner, Leopold Franziskus"]
[Result "1-0"]
[ECO "C05"]
[WhiteElo "2169"]
[BlackElo "2108"]
[Annotator "NA"]
[PlyCount "109"]
[EventDate "2018.07.22"]
[EventType "swiss"]
[EventCountry "AUT"]
[SourceTitle "playchess.com"]
[Source "ChessBase"]
[SourceQuality "1"]
[TimeControl "40/5400+30:1800+30"]

1. e4 {[%emt 0:00:00]} e6 {[%emt 0:00:04]} 2. d4 {[%emt 0:00:11]} d5 {[%emt 0:00:04]} 3. Nd2 {[%emt 0:00:00]} Nf6 {[%emt 0:00:05]} 4. e5 {[%emt 0:00:51]} Nfd7 {[%emt 0:00:07]} 5. f4 {[%emt 0:00:52]} c5 {[%emt 0:00:32]} 6. c3 {[%emt 0:00:20]} b6 {[%emt 0:01:55]} 7. Bd3 {[%emt 0:05:48]} Ba6 {[%emt 0:01:25]} 8. Ndf3 {[%emt 0:01:00]} Bxd3 {[%emt 0:01:28]} 9. Qxd3 {[%emt 0:00:04]} Nc6 {[%emt 0:01:03]} 10. a3 {[%emt 0:03:13]} g6 {[%emt 0:01:47]} 11. Ne2 {[%emt 0:02:55]} h5 {[%emt 0:02:15]} 12. Ng5 {[%emt 0:08:00]} Qe7 {[%emt 0:00:50]} 13. Be3 {[%emt 0:04:14]} c4 {[%emt 0:04:42]} 14. Qc2 {[%emt 0:00:39]} b5 {[%emt 0:02:04]} 15. Kf2 {[%emt 0:02:50]} Bh6 {[%emt 0:01:37]} 16. h4 {[%emt 0:02:49]} Rb8 {[%emt 0:01:49]} 17. f5 {[%emt 0:08:51]} gxf5 {[%emt 0:02:27]} 18. Nf4 {[%emt 0:00:06]} Bxg5 {[%emt 0:07:40]} 19. hxg5 {[%emt 0:00:24]} h4 {[%emt 0:05:07]} 20. Rh3 {[%emt 0:01:44]} Kd8 {[%emt 0:12:42]} 21. Rah1 {[%emt 0:02:06]} Kc7 {[%emt 0:03:27]} 22. Rxh4 {[%emt 0:01:00]} Rxh4 {[%emt 0:00:43]} 23. Rxh4 {[%emt 0:00:05]} Rg8 {[%emt 0:05:43]} 24. Qc1 {[%emt 0:06:29]} Nf8 {[%emt 0:01:04]} 25. Nh5 {[%emt 0:03:27]} Rh8 {[%emt 0:01:31]} 26. Rh3 {[%emt 0:00:46]} Ng6 {[%emt 0:01:36]} 27. Nf6 {[%emt 0:02:08]} Qf8 {[%emt 0:01:21]} 28. Rh6 {[%emt 0:03:57]} Nce7 {[%emt 0:03:36]} 29. g3 {[%emt 0:16:51]} Ng8 {[%emt 0:03:50]} 30. Rxh8 {[%emt 0:01:00]} Nxh8 {[%emt 0:01:57]} 31. a4 {[%emt 0:00:57]} Nxf6 {[%emt 0:03:33]} 32. exf6 {[%emt 0:00:53]} b4 {[%emt 0:02:38]} 33. b3 {[%emt 0:02:07]} Ng6 {[%emt 0:01:22]} 34. Bd2 {[%emt 0:02:33]} Qh8 {[%emt 0:01:45]} 35. Kg2 {[%emt 0:01:25]} Qh5 {[%emt 0:01:20]} 36. cxb4 {[%emt 0:09:46]} Qg4 {[%emt 0:02:14]} 37. Kf2 {[%emt 0:01:52]} Qxd4+ {[%emt 0:01:26]} 38. Be3 {[%emt 0:00:04]} Qe4 {[%emt 0:00:35]} 39. bxc4 {[%emt 0:04:06]} d4 {[%emt 0:01:13]} 40. Bd2 {[%emt 0:00:39]} e5 {[%emt 0:33:52]} 41. b5 {[%emt 0:10:29]} Qd3 {[%emt 0:00:00]} 42. c5 {[%emt 0:07:59]} e4 {[%emt 0:00:00]} 43. Bf4+ {[%emt 0:00:45]} Kc8 {[%emt 0:00:00]} 44. b6 {[%emt 0:05:00]} Qf3+ {[%emt 0:00:37]} 45. Kg1 {[%emt 0:02:50]} e3 {[%emt 0:06:02]} 46. Qf1 {[%emt 0:03:59]} Qe4 {[%emt 0:10:53]} 47. Qa6+ {[%emt 0:01:25]} Kd8 {[%emt 0:00:21]} 48. Bc7+ {[%emt 0:01:56]} Kd7 {[%emt 0:01:09]} 49. Qb5+ {[%emt 0:00:51]} Kc8 {[%emt 0:00:49]} 50. bxa7 {[%emt 0:01:06]} e2 {[%emt 0:00:33]} 51. Qb8+ {[%emt 0:00:04]} Kd7 {[%emt 0:00:03]} 52. Qd8+ {[%emt 0:00:11]} Kc6 {[%emt 0:00:11]} 53. a8=Q+ {[%emt 0:00:23]} Kxc5 {[%emt 0:00:10]} 54. Qxe4 {[%emt 0:00:44]} fxe4 {[%emt 0:00:05]} 55. Kf2 {[%emt 0:00:26]} 1-0

[Event "AUT-ch 2018"]
[Site "Vienna"]
[Date "2018.07.28"]
[Round "8"]
[White "Jakits, Leopold"]
[Black "Ly, Dominik"]
[Result "0-1"]
[ECO "B20"]
[WhiteElo "2161"]
[BlackElo "2217"]
[Annotator "NA"]
[PlyCount "62"]
[EventDate "2018.07.22"]
[EventType "swiss"]
[EventCountry "AUT"]
[SourceTitle "playchess.com"]
[Source "ChessBase"]
[SourceQuality "1"]
[TimeControl "40/5400+30:1800+30"]

1. e4 {[%emt 0:00:00]} c5 {[%emt 0:00:05]} 2. b3 {[%emt 0:00:00]} g6 {[%emt 0:01:09]} 3. Bb2 {[%emt 0:00:00]} Nf6 {[%emt 0:00:04]} 4. Nc3 {[%emt 0:00:23]} Nc6 {[%emt 0:00:16]} 5. Nf3 {[%emt 0:06:24]} Bg7 {[%emt 0:01:09]} 6. Nd5 {[%emt 0:08:02]} e6 {[%emt 0:08:04]} 7. Nxf6+ {[%emt 0:01:02]} Bxf6 {[%emt 0:00:08]} 8. e5 {[%emt 0:00:11]} Bg7 {[%emt 0:00:13]} 9. Bb5 {[%emt 0:00:09]} Ne7 {[%emt 0:02:47]} 10. a4 {[%emt 0:03:36]} a6 {[%emt 0:02:51]} 11. Bc4 {[%emt 0:04:59]} Nc6 {[%emt 0:00:33]} 12. Bc3 {[%emt 0:04:27]} b6 {[%emt 0:02:05]} 13. Qe2 {[%emt 0:01:14]} Qc7 {[%emt 0:06:58]} 14. O-O {[%emt 0:10:18]} O-O {[%emt 0:05:05]} 15. Rfe1 {[%emt 0:24:09]} Qb7 {[%emt 0:09:11]} 16. Rad1 {[%emt 0:08:05]} Rb8 {[%emt 0:01:41]} 17. d4 {[%emt 0:02:21]} cxd4 {[%emt 0:16:09]} 18. Bxd4 {[%emt 0:00:04]} Rd8 {[%emt 0:02:23]} 19. Ba1 {[%emt 0:07:46]} b5 {[%emt 0:02:51]} 20. axb5 {[%emt 0:00:09]} axb5 {[%emt 0:00:08]} 21. Bd3 {[%emt 0:00:11]} Qb6 {[%emt 0:00:55]} 22. Be4 {[%emt 0:03:26]} Bb7 {[%emt 0:01:14]} 23. Qe3 {[%emt 0:00:50]} Qxe3 {[%emt 0:01:05]} 24. Rxe3 {[%emt 0:00:04]} Ra8 {[%emt 0:00:27]} 25. Bc3 {[%emt 0:00:42]} Rac8 {[%emt 0:03:00]} 26. h3 {[%emt 0:10:41]} Ba8 {[%emt 0:01:06]} 27. Red3 {[%emt 0:00:31]} Nxe5 {[%emt 0:04:38]} 28. Bxe5 {[%emt 0:03:36]} Bxe4 {[%emt 0:00:11]} 29. Rxd7 {[%emt 0:00:34]} Rxd7 {[%emt 0:00:13]} 30. Rxd7 {[%emt 0:00:01]} Bxf3 {[%emt 0:00:13]} 31. Bxg7 {[%emt 0:00:02]} Bc6 {[%emt 0:00:28]} 0-1

[Event "AUT-ch 2018"]
[Site "Vienna"]
[Date "2018.07.28"]
[Round "8"]
[White "Ager, Josef"]
[Black "Peyrer, Konstantin"]
[Result "1/2-1/2"]
[ECO "D02"]
[WhiteElo "2154"]
[BlackElo "2209"]
[Annotator "NA"]
[PlyCount "148"]
[EventDate "2018.07.22"]
[EventType "swiss"]
[EventCountry "AUT"]
[SourceTitle "playchess.com"]
[Source "ChessBase"]
[SourceQuality "1"]
[TimeControl "40/5400+30:1800+30"]

1. d4 {[%emt 0:00:00]} d5 {[%emt 0:00:26]} 2. Nf3 {[%emt 0:00:00]} Nf6 {[%emt 0:00:10]} 3. c4 {[%emt 0:00:00]} e6 {[%emt 0:00:05]} 4. g3 {[%emt 0:00:00]} Bb4+ {[%emt 0:00:03]} 5. Bd2 {[%emt 0:00:02]} Be7 {[%emt 0:00:09]} 6. Bg2 {[%emt 0:00:10]} O-O {[%emt 0:00:22]} 7. Qc2 {[%emt 0:00:56]} c5 {[%emt 0:00:38]} 8. cxd5 {[%emt 0:00:10]} Nxd5 {[%emt 0:03:35]} 9. dxc5 {[%emt 0:01:04]} Na6 {[%emt 0:00:17]} 10. c6 {[%emt 0:01:13]} Nab4 {[%emt 0:00:11]} 11. Qb3 {[%emt 0:01:15]} Nxc6 {[%emt 0:00:32]} 12. Nc3 {[%emt 0:00:19]} Na5 {[%emt 0:05:12]} 13. Qc2 {[%emt 0:00:13]} Nb4 {[%emt 0:01:07]} 14. Qc1 {[%emt 0:02:24]} Nc4 {[%emt 0:02:02]} 15. Bf4 {[%emt 0:01:25]} Bf6 {[%emt 0:03:10]} 16. O-O {[%emt 0:00:46]} Nd5 {[%emt 0:00:27]} 17. Rd1 {[%emt 0:00:52]} Nxc3 {[%emt 0:01:11]} 18. bxc3 {[%emt 0:01:16]} Qa5 {[%emt 0:00:31]} 19. Nd2 {[%emt 0:00:21]} Nxd2 {[%emt 0:08:44]} 20. Bxd2 {[%emt 0:00:08]} Qa6 {[%emt 0:00:27]} 21. Bg5 {[%emt 0:03:24]} Be5 {[%emt 0:03:18]} 22. Be7 {[%emt 0:06:44]} Re8 {[%emt 0:00:07]} 23. Qe3 {[%emt 0:00:43]} Qa5 {[%emt 0:03:03]} 24. Bb4 {[%emt 0:07:09]} Qc7 {[%emt 0:00:06]} 25. Bc5 {[%emt 0:05:34]} Bf6 {[%emt 0:02:41]} 26. Rab1 {[%emt 0:03:37]} Qa5 {[%emt 0:01:20]} 27. Bxb7 {[%emt 0:05:06]} Bxb7 {[%emt 0:00:11]} 28. Rxb7 {[%emt 0:00:06]} Qxa2 {[%emt 0:00:06]} 29. Rdd7 {[%emt 0:00:30]} Qa1+ {[%emt 0:00:15]} 30. Kg2 {[%emt 0:00:10]} Qxc3 {[%emt 0:00:11]} 31. Qxc3 {[%emt 0:00:52]} Bxc3 {[%emt 0:00:05]} 32. Rxf7 {[%emt 0:00:08]} a5 {[%emt 0:00:25]} 33. e3 {[%emt 0:04:41]} Reb8 {[%emt 0:02:25]} 34. Rxb8+ {[%emt 0:01:12]} Rxb8 {[%emt 0:00:06]} 35. Ra7 {[%emt 0:00:05]} e5 {[%emt 0:01:09]} 36. Kf3 {[%emt 0:06:02]} Rb2 {[%emt 0:01:26]} 37. e4 {[%emt 0:00:18]} h5 {[%emt 0:03:30]} 38. h4 {[%emt 0:03:42]} Ra2 {[%emt 0:01:16]} 39. g4 {[%emt 0:00:49]} hxg4+ {[%emt 0:02:49]} 40. Kxg4 {[%emt 0:00:08]} a4 {[%emt 0:31:07]} 41. f3 {[%emt 0:36:11]} Bd4 {[%emt 0:02:48]} 42. Ra8+ {[%emt 0:01:54]} Kh7 {[%emt 0:00:05]} 43. Bd6 {[%emt 0:02:41]} Kg6 {[%emt 0:04:12]} 44. h5+ {[%emt 0:01:26]} Kf6 {[%emt 0:00:05]} 45. Ra6 {[%emt 0:00:17]} Kf7 {[%emt 0:00:15]} 46. Ra5 {[%emt 0:09:37]} Ke6 {[%emt 0:00:08]} 47. Ra6 {[%emt 0:00:41]} Kd7 {[%emt 0:00:12]} 48. Bf8 {[%emt 0:00:33]} Rg2+ {[%emt 0:02:20]} 49. Kh3 {[%emt 0:00:28]} Rg1 {[%emt 0:01:46]} 50. Rxa4 {[%emt 0:00:34]} Rh1+ {[%emt 0:00:35]} 51. Kg4 {[%emt 0:00:48]} Ke6 {[%emt 0:03:01]} 52. f4 {[%emt 0:10:17]} Rg1+ {[%emt 0:01:32]} 53. Kh3 {[%emt 0:00:58]} Rh1+ {[%emt 0:00:11]} 54. Kg2 {[%emt 0:00:11]} Rg1+ {[%emt 0:00:09]} 55. Kh2 {[%emt 0:00:15]} Rg4 {[%emt 0:00:07]} 56. Kh3 {[%emt 0:04:12]} Rg1 {[%emt 0:01:03]} 57. Rb4 {[%emt 0:01:52]} Rh1+ {[%emt 0:01:48]} 58. Kg2 {[%emt 0:00:48]} Rxh5 {[%emt 0:01:26]} 59. Bxg7 {[%emt 0:02:01]} Rh4 {[%emt 0:03:42]} 60. f5+ {[%emt 0:04:26]} Kf7 {[%emt 0:01:10]} 61. Rb7+ {[%emt 0:00:18]} Kg8 {[%emt 0:00:06]} 62. f6 {[%emt 0:00:22]} Rf4 {[%emt 0:00:48]} 63. Kg3 {[%emt 0:00:28]} Bf2+ {[%emt 0:00:10]} 64. Kh3 {[%emt 0:01:37]} Bh4 {[%emt 0:00:04]} 65. Bh6 {[%emt 0:05:15]} Rxf6 {[%emt 0:00:09]} 66. Kxh4 {[%emt 0:00:05]} Rxh6+ {[%emt 0:00:07]} 67. Kg5 {[%emt 0:00:10]} Re6 {[%emt 0:00:18]} 68. Kf5 {[%emt 0:00:08]} Re8 {[%emt 0:00:04]} 69. Kf6 {[%emt 0:00:10]} Ra8 {[%emt 0:01:34]} 70. Kxe5 {[%emt 0:00:10]} Ra5+ {[%emt 0:00:07]} 71. Kf6 {[%emt 0:00:10]} Ra6+ {[%emt 0:00:07]} 72. Kf5 {[%emt 0:00:06]} Kf8 {[%emt 0:00:13]} 73. e5 {[%emt 0:00:05]} Ke8 {[%emt 0:00:07]} 74. e6 {[%emt 0:00:24]} Ra1 {[%emt 0:00:04]} 1/2-1/2

[Event "AUT-ch 2018"]
[Site "Vienna"]
[Date "2018.07.28"]
[Round "8"]
[White "Hofegger, Jakob"]
[Black "Ehs, Dominik"]
[Result "1/2-1/2"]
[ECO "A04"]
[WhiteElo "2147"]
[BlackElo "2097"]
[Annotator "NA"]
[PlyCount "117"]
[EventDate "2018.07.22"]
[EventType "swiss"]
[EventCountry "AUT"]
[SourceTitle "playchess.com"]
[Source "ChessBase"]
[SourceQuality "1"]
[TimeControl "40/5400+30:1800+30"]

1. Nf3 c5 {[%emt 0:00:11]} 2. g3 {[%emt 0:00:00]} Nc6 {[%emt 0:00:15]} 3. Bg2 {[%emt 0:00:00]} e6 {[%emt 0:00:08]} 4. O-O {[%emt 0:00:00]} d5 {[%emt 0:00:06]} 5. d3 {[%emt 0:00:00]} Nf6 {[%emt 0:00:10]} 6. Nbd2 {[%emt 0:00:00]} Be7 {[%emt 0:00:19]} 7. e4 {[%emt 0:00:01]} Qc7 {[%emt 0:00:20]} 8. Re1 {[%emt 0:00:41]} b6 {[%emt 0:01:07]} 9. Qe2 {[%emt 0:02:40]} Bb7 {[%emt 0:01:07]} 10. a3 {[%emt 0:02:50]} h6 {[%emt 0:05:20]} 11. h4 {[%emt 0:04:38]} O-O-O {[%emt 0:04:25]} 12. e5 {[%emt 0:02:27]} Nd7 {[%emt 0:00:47]} 13. h5 {[%emt 0:00:09]} Rdg8 {[%emt 0:05:07]} 14. c4 {[%emt 0:00:18]} d4 {[%emt 0:04:58]} 15. Ne4 {[%emt 0:12:26]} g6 {[%emt 0:07:27]} 16. hxg6 {[%emt 0:01:35]} Rxg6 {[%emt 0:00:14]} 17. Bf4 {[%emt 0:02:49]} h5 {[%emt 0:04:27]} 18. Nd6+ {[%emt 0:08:50]} Bxd6 {[%emt 0:04:52]} 19. exd6 {[%emt 0:00:29]} Qd8 {[%emt 0:00:06]} 20. b4 {[%emt 0:07:44]} h4 {[%emt 0:06:03]} 21. bxc5 {[%emt 0:12:12]} Nxc5 {[%emt 0:06:00]} 22. d7+ {[%emt 0:09:44]} Nxd7 {[%emt 0:07:42]} 23. c5 {[%emt 0:05:57]} hxg3 {[%emt 0:10:06]} 24. Bxg3 {[%emt 0:01:20]} Nxc5 {[%emt 0:06:24]} 25. Rac1 {[%emt 0:05:49]} Rhg8 {[%emt 0:05:45]} 26. Rxc5 {[%emt 0:04:30]} bxc5 {[%emt 0:01:46]} 27. Rb1 {[%emt 0:02:10]} Rxg3 {[%emt 0:02:29]} 28. fxg3 {[%emt 0:00:07]} Rxg3 {[%emt 0:00:32]} 29. Kh2 {[%emt 0:04:16]} Qc7 {[%emt 0:04:06]} 30. Kh1 {[%emt 0:02:00]} Ne7 {[%emt 0:02:46]} 31. Ne1 {[%emt 0:03:03]} Rh3+ {[%emt 0:02:18]} 32. Kg1 {[%emt 0:00:04]} Qh2+ {[%emt 0:00:10]} 33. Kf2 {[%emt 0:01:22]} Bxg2 {[%emt 0:00:20]} 34. Nxg2 {[%emt 0:00:10]} Nd5 {[%emt 0:06:47]} 35. Qg4 {[%emt 0:01:37]} Rh8 {[%emt 0:01:15]} 36. Qf3 {[%emt 0:02:04]} Qh5 {[%emt 0:00:41]} 37. Qg3 {[%emt 0:00:28]} e5 {[%emt 0:00:36]} 38. Rb5 {[%emt 0:01:36]} Qf5+ {[%emt 0:00:54]} 39. Kg1 {[%emt 0:00:19]} Kd7 {[%emt 0:01:04]} 40. Rxc5 {[%emt 0:01:06]} Kd6 {[%emt 0:30:29]} 41. Ra5 {[%emt 0:02:33]} Nc3 {[%emt 0:00:00]} 42. Qe1 {[%emt 0:03:46]} f6 {[%emt 0:00:00]} 43. Ra6+ {[%emt 0:16:12]} Kc7 {[%emt 0:00:00]} 44. Rxa7+ {[%emt 0:02:13]} Kb8 {[%emt 0:00:00]} 45. Re7 {[%emt 0:00:31]} Qh5 {[%emt 0:00:00]} 46. Rg7 {[%emt 0:04:26]} Qf3 {[%emt 0:00:30]} 47. Nh4 {[%emt 0:00:45]} Qd1 {[%emt 0:02:00]} 48. Qxd1 {[%emt 0:00:35]} Nxd1 {[%emt 0:00:07]} 49. Ng6 {[%emt 0:03:28]} Rc8 {[%emt 0:01:07]} 50. Rf7 {[%emt 0:00:36]} Rc6 {[%emt 0:00:33]} 51. Kf1 {[%emt 0:01:01]} Ne3+ {[%emt 0:00:27]} 52. Ke2 {[%emt 0:00:07]} Ra6 {[%emt 0:00:39]} 53. Kf3 {[%emt 0:00:42]} Nf1 {[%emt 0:01:06]} 54. Ke4 {[%emt 0:01:29]} Ne3 {[%emt 0:00:09]} 55. Kf3 {[%emt 0:00:03]} Rxa3 {[%emt 0:00:31]} 56. Rxf6 {[%emt 0:00:20]} Rxd3 {[%emt 0:01:04]} 57. Nxe5 {[%emt 0:00:13]} Nd5+ {[%emt 0:00:30]} 58. Nxd3 {[%emt 0:00:04]} Nxf6 {[%emt 0:00:03]} 59. Kf4 {[%emt 0:00:12]} 1/2-1/2

[Event "AUT-ch 2018"]
[Site "Vienna"]
[Date "2018.07.28"]
[Round "8"]
[White "Trippold, Denise"]
[Black "Pernerstorfer, Johannes"]
[Result "1-0"]
[ECO "E17"]
[WhiteElo "2138"]
[BlackElo "2066"]
[Annotator "NA"]
[PlyCount "41"]
[EventDate "2018.07.22"]
[EventType "swiss"]
[EventCountry "AUT"]
[SourceTitle "playchess.com"]
[Source "ChessBase"]
[SourceQuality "1"]
[TimeControl "40/5400+30:1800+30"]

1. d4 {[%emt 0:00:00]} Nf6 {[%emt 0:02:10]} 2. c4 {[%emt 0:00:00]} e6 {[%emt 0:02:03]} 3. Nf3 {[%emt 0:00:12]} b6 {[%emt 0:02:40]} 4. g3 {[%emt 0:00:07]} Bb7 {[%emt 0:02:42]} 5. Bg2 {[%emt 0:00:15]} Be7 {[%emt 0:02:42]} 6. O-O {[%emt 0:00:32]} O-O {[%emt 0:01:58]} 7. d5 {[%emt 0:01:13]} exd5 {[%emt 0:03:48]} 8. Nh4 {[%emt 0:00:17]} d6 {[%emt 0:08:47]} 9. cxd5 {[%emt 0:03:09]} c6 {[%emt 0:04:56]} 10. dxc6 {[%emt 0:10:00]} Nxc6 {[%emt 0:05:13]} 11. Nc3 {[%emt 0:09:27]} d5 {[%emt 0:03:34]} 12. Nf5 {[%emt 0:02:52]} Qd7 {[%emt 0:05:33]} 13. Nxd5 {[%emt 0:09:43]} Nxd5 {[%emt 0:09:05]} 14. Qxd5 {[%emt 0:00:14]} Qe8 {[%emt 0:02:34]} 15. Qe4 {[%emt 0:17:29]} Bc5 {[%emt 0:01:50]} 16. Qg4 {[%emt 0:01:41]} Qe5 {[%emt 0:07:21]} 17. Bh6 {[%emt 0:12:48]} g6 {[%emt 0:04:29]} 18. Bxf8 {[%emt 0:00:17]} Rxf8 {[%emt 0:00:54]} 19. Ne3 {[%emt 0:10:40]} Qxb2 {[%emt 0:03:30]} 20. Qd7 {[%emt 0:00:29]} Qxe2 {[%emt 0:09:39]} 21. Bxc6 {[%emt 0:04:32]} 1-0

[Event "AUT-ch 2018"]
[Site "Vienna"]
[Date "2018.07.28"]
[Round "8"]
[White "Froewis, Annika"]
[Black "Gutmann, Alois"]
[Result "1/2-1/2"]
[ECO "C18"]
[WhiteElo "2128"]
[BlackElo "2062"]
[Annotator "NA"]
[PlyCount "62"]
[EventDate "2018.07.22"]
[EventType "swiss"]
[EventCountry "AUT"]
[SourceTitle "playchess.com"]
[Source "ChessBase"]
[SourceQuality "1"]
[TimeControl "40/5400+30:1800+30"]

1. e4 {[%emt 0:00:00]} e6 {[%emt 0:00:05]} 2. d4 {[%emt 0:00:00]} d5 {[%emt 0:00:05]} 3. Nc3 {[%emt 0:00:00]} Bb4 {[%emt 0:00:12]} 4. e5 {[%emt 0:00:11]} c5 {[%emt 0:00:17]} 5. a3 {[%emt 0:00:14]} Bxc3+ {[%emt 0:00:29]} 6. bxc3 {[%emt 0:00:02]} Qa5 {[%emt 0:00:17]} 7. Bd2 {[%emt 0:00:29]} Qa4 {[%emt 0:01:01]} 8. Qg4 {[%emt 0:01:41]} Kf8 {[%emt 0:00:38]} 9. Qd1 {[%emt 0:04:00]} b6 {[%emt 0:00:50]} 10. h4 {[%emt 0:12:40]} Ba6 {[%emt 0:02:41]} 11. Bxa6 {[%emt 0:01:14]} Nxa6 {[%emt 0:00:06]} 12. Ne2 {[%emt 0:06:03]} Rc8 {[%emt 0:02:26]} 13. Ra2 {[%emt 0:02:56]} Ne7 {[%emt 0:03:20]} 14. h5 {[%emt 0:01:47]} h6 {[%emt 0:00:18]} 15. Rh3 {[%emt 0:04:57]} Nb8 {[%emt 0:06:13]} 16. Qb1 {[%emt 0:08:26]} Nbc6 {[%emt 0:04:19]} 17. Qb3 {[%emt 0:02:38]} Qxb3 {[%emt 0:11:19]} 18. cxb3 {[%emt 0:00:02]} Na5 {[%emt 0:01:50]} 19. Rb2 {[%emt 0:08:54]} Ke8 {[%emt 0:06:59]} 20. g4 {[%emt 0:02:31]} c4 {[%emt 0:03:48]} 21. b4 {[%emt 0:00:48]} Nb3 {[%emt 0:00:06]} 22. Be3 {[%emt 0:02:38]} a5 {[%emt 0:01:33]} 23. Kd1 {[%emt 0:08:12]} axb4 {[%emt 0:06:05]} 24. axb4 {[%emt 0:07:11]} Ra8 {[%emt 0:00:10]} 25. Nc1 {[%emt 0:05:01]} Ra1 {[%emt 0:01:52]} 26. Ra2 {[%emt 0:04:10]} Rxa2 {[%emt 0:06:39]} 27. Nxa2 {[%emt 0:00:04]} Nc8 {[%emt 0:00:30]} 28. Kc2 {[%emt 0:01:59]} Na7 {[%emt 0:03:32]} 29. Rh1 {[%emt 0:02:00]} Nb5 {[%emt 0:03:28]} 30. Nc1 {[%emt 0:00:22]} Nxc1 {[%emt 0:01:15]} 31. Rxc1 {[%emt 0:00:06]} Kd7 {[%emt 0:00:22]} 1/2-1/2

[Event "AUT-ch 2018"]
[Site "Vienna"]
[Date "2018.07.28"]
[Round "8"]
[White "Spiesberger, Gerhard"]
[Black "Toelly, Michael"]
[Result "1/2-1/2"]
[ECO "C25"]
[WhiteElo "2127"]
[BlackElo "2127"]
[Annotator "NA"]
[PlyCount "60"]
[EventDate "2018.07.22"]
[EventType "swiss"]
[EventCountry "AUT"]
[SourceTitle "playchess.com"]
[Source "ChessBase"]
[SourceQuality "1"]
[TimeControl "40/5400+30:1800+30"]

1. e4 {[%emt 0:00:12]} e5 {[%emt 0:00:08]} 2. Nc3 {[%emt 0:00:12]} Nc6 {[%emt 0:00:42]} 3. g3 {[%emt 0:00:41]} Nf6 {[%emt 0:01:17]} 4. Bg2 {[%emt 0:00:35]} d6 {[%emt 0:00:23]} 5. d3 {[%emt 0:02:18]} Be7 {[%emt 0:01:26]} 6. Nge2 {[%emt 0:02:48]} h5 {[%emt 0:00:13]} 7. Bg5 {[%emt 0:08:14]} Be6 {[%emt 0:06:02]} 8. Bxf6 {[%emt 0:04:59]} Bxf6 {[%emt 0:00:19]} 9. Nd5 {[%emt 0:00:38]} h4 {[%emt 0:02:33]} 10. Qd2 {[%emt 0:03:39]} h3 {[%emt 0:01:43]} 11. Bf3 {[%emt 0:02:12]} Bg5 {[%emt 0:03:34]} 12. Qd1 {[%emt 0:02:37]} Qd7 {[%emt 0:03:28]} 13. O-O {[%emt 0:06:57]} f5 {[%emt 0:08:33]} 14. exf5 {[%emt 0:04:48]} Bxf5 {[%emt 0:00:19]} 15. b4 {[%emt 0:01:23]} O-O {[%emt 0:03:54]} 16. b5 {[%emt 0:09:51]} Nd8 {[%emt 0:02:37]} 17. Nec3 {[%emt 0:09:21]} Qf7 {[%emt 0:18:46]} 18. Ne3 {[%emt 0:08:50]} Be6 {[%emt 0:03:43]} 19. Bh1 {[%emt 0:02:43]} c6 {[%emt 0:05:52]} 20. Ne4 {[%emt 0:02:09]} Be7 {[%emt 0:04:21]} 21. f4 {[%emt 0:03:23]} Qg6 {[%emt 0:01:43]} 22. fxe5 {[%emt 0:05:32]} dxe5 {[%emt 0:00:50]} 23. Rxf8+ {[%emt 0:02:46]} Bxf8 {[%emt 0:00:05]} 24. a4 {[%emt 0:01:03]} Nf7 {[%emt 0:03:14]} 25. bxc6 {[%emt 0:01:48]} bxc6 {[%emt 0:00:01]} 26. Rb1 {[%emt 0:00:32]} Qh6 {[%emt 0:07:10]} 27. Ng4 {[%emt 0:03:13]} Bxg4 {[%emt 0:02:38]} 28. Qxg4 {[%emt 0:00:07]} Qe3+ {[%emt 0:00:06]} 29. Kf1 {[%emt 0:00:41]} Be7 {[%emt 0:02:00]} 30. Re1 {[%emt 0:03:48]} Qd4 {[%emt 0:00:42]} 1/2-1/2

[Event "AUT-ch 2018"]
[Site "Vienna"]
[Date "2018.07.28"]
[Round "8"]
[White "Hupfer, Robert"]
[Black "Hiermann, Dietmar"]
[Result "1/2-1/2"]
[ECO "D35"]
[WhiteElo "2122"]
[BlackElo "2202"]
[Annotator "NA"]
[PlyCount "62"]
[EventDate "2018.07.22"]
[EventType "swiss"]
[EventCountry "AUT"]
[SourceTitle "playchess.com"]
[Source "ChessBase"]
[SourceQuality "1"]
[TimeControl "40/5400+30:1800+30"]

1. d4 {[%emt 0:00:00]} d5 {[%emt 0:00:04]} 2. c4 {[%emt 0:00:00]} e6 {[%emt 0:00:05]} 3. Nc3 {[%emt 0:00:00]} Nf6 {[%emt 0:00:06]} 4. cxd5 {[%emt 0:00:04]} exd5 {[%emt 0:00:07]} 5. Bg5 {[%emt 0:00:06]} Be7 {[%emt 0:00:21]} 6. e3 {[%emt 0:00:08]} c6 {[%emt 0:00:53]} 7. Qc2 {[%emt 0:00:26]} Nbd7 {[%emt 0:00:14]} 8. Nf3 {[%emt 0:00:42]} O-O {[%emt 0:00:38]} 9. Bd3 {[%emt 0:00:23]} Re8 {[%emt 0:01:17]} 10. O-O {[%emt 0:00:14]} Nf8 {[%emt 0:02:51]} 11. h3 {[%emt 0:01:20]} Nh5 {[%emt 0:04:18]} 12. Bxe7 {[%emt 0:02:57]} Qxe7 {[%emt 0:02:12]} 13. Rfe1 {[%emt 0:02:46]} Nf6 {[%emt 0:01:42]} 14. e4 {[%emt 0:05:41]} dxe4 {[%emt 0:02:47]} 15. Nxe4 {[%emt 0:00:16]} Nxe4 {[%emt 0:02:09]} 16. Bxe4 {[%emt 0:13:17]} Be6 {[%emt 0:03:43]} 17. d5 {[%emt 0:07:42]} cxd5 {[%emt 0:00:12]} 18. Bxd5 {[%emt 0:01:40]} Qd7 {[%emt 0:09:51]} 19. Bxe6 {[%emt 0:00:53]} Rxe6 {[%emt 0:00:20]} 20. Rxe6 {[%emt 0:06:32]} Nxe6 {[%emt 0:02:30]} 21. Rd1 {[%emt 0:06:36]} Qb5 {[%emt 0:06:47]} 22. Nd4 {[%emt 0:08:12]} Nxd4 {[%emt 0:00:28]} 23. Rxd4 {[%emt 0:00:04]} h6 {[%emt 0:02:37]} 24. Qd2 {[%emt 0:07:24]} Qf5 {[%emt 0:02:12]} 25. Qd3 {[%emt 0:02:34]} Qe6 {[%emt 0:00:36]} 26. Qe4 {[%emt 0:15:20]} Re8 {[%emt 0:02:34]} 27. Qxe6 {[%emt 0:00:49]} Rxe6 {[%emt 0:00:03]} 28. Rd7 {[%emt 0:02:17]} Rb6 {[%emt 0:00:11]} 29. b3 {[%emt 0:00:26]} g6 {[%emt 0:00:39]} 30. Kf1 {[%emt 0:00:20]} Kg7 {[%emt 0:00:48]} 31. Ke2 {[%emt 0:00:01]} Ra6 {[%emt 0:00:19]} 1/2-1/2